fUST/lending_fUST_20250826
["ID","MTS","AMOUNT","RATE_DAILY","PERIOD"]
[381374499,1756163439760,-151.0,0.00041085,30]
[381374500,1756163439772,-211.83877,0.00041085,30]
[381374501,1756163439784,-151.0,0.00041085,30]
[381374502,1756163439797,-299.920248,0.00041085,30]
[381374503,1756163439809,-151.0,0.00041085,30]
[381374504,1756163439825,-151.0,0.00041085,30]
[381374505,1756163439836,-151.0,0.00041085,30]
[381374506,1756163439849,-151.0,0.00041085,30]
[381374507,1756163439861,-151.0,0.00041085,30]
[381374508,1756163439872,-222.066546,0.00041085,30]
[381374509,1756163439884,-151.0,0.00041085,30]
[381374510,1756163439896,-151.0,0.00041085,30]
[381374512,1756163439909,-151.0,0.00041085,30]
[381374513,1756163439921,-151.0,0.00041085,30]
[381374514,1756163439933,-151.0,0.00041085,30]
[381374515,1756163439945,-151.0,0.00041085,30]
[381374516,1756163439957,-505.81902567,0.00041095,15]
[381374517,1756163439970,-480.0,0.00041095,30]
[381374518,1756163439982,-480.0,0.00041095,30]
[381374519,1756163439994,-480.0,0.00041095,30]
[381374520,1756163440006,-480.0,0.00041095,30]
[381374521,1756163440018,-480.0,0.00041095,30]
[381374522,1756163440030,-526.3,0.00041095,30]
[381374523,1756163440041,-480.0,0.00041095,30]
[381374524,1756163440052,-480.0,0.00041095,30]
[381374525,1756163440064,-480.0,0.00041095,30]
[381374526,1756163440076,-480.0,0.00041095,30]
[381374528,1756163440087,-480.0,0.00041095,30]
[381374530,1756163440099,-480.0,0.00041095,30]
[381374531,1756163440111,-577.4,0.00041095,30]
[381374532,1756163440122,-480.0,0.00041095,30]
[381374533,1756163440133,-480.0,0.00041095,30]
[381374534,1756163440144,-1260.72,0.00041095,30]
[381374535,1756163440156,-480.0,0.00041095,30]
[381374536,1756163440167,-480.0,0.00041095,30]
[381374537,1756163440180,-480.0,0.00041095,30]
[381374538,1756163440191,-629.84050493,0.00041095,30]
[381374539,1756163440203,-1257.72,0.00041095,30]
[381374540,1756163440216,-653.28,0.00041095,30]
[381374541,1756163440228,-480.0,0.00041095,30]
[381374542,1756163440239,-480.0,0.00041095,30]
[381374543,1756163440251,-480.0,0.00041095,30]
[381374544,1756163440263,-480.0,0.00041095,30]
[381374545,1756163440274,-480.0,0.00041095,30]
[381374546,1756163440286,-489.61,0.00041095,30]
[381374547,1756163440297,-480.0,0.00041095,30]
[381374548,1756163440309,-480.0,0.00041095,30]
[381374549,1756163440320,-486.33,0.00041095,30]
[381374550,1756163440332,-480.0,0.00041095,30]
[381374551,1756163440343,-1091.35,0.00041095,30]
[381374552,1756163440355,-480.0,0.00041095,30]
[381374553,1756163440366,-880.46,0.00041095,30]
[381374554,1756163440377,-480.0,0.00041095,30]
[381374555,1756163440388,-633.33,0.00041095,30]
[381374556,1756163440401,-1000.0,0.00041095,30]
[381374557,1756163440413,-731.97,0.00041095,30]
[381374558,1756163440424,-480.0,0.00041095,30]
[381374559,1756163440436,-514.97,0.00041095,30]
[381374560,1756163440448,-2676.56,0.00041095,30]
[381374561,1756163440460,-480.0,0.00041095,30]
[381374562,1756163440472,-575.29,0.00041095,30]
[381374563,1756163440484,-480.21087369,0.00041095,30]
[381374564,1756163440496,-480.0,0.00041095,30]
[381374565,1756163440507,-529.52,0.00041095,30]
[381374566,1756163440518,-1064.77,0.00041095,30]
[381374567,1756163440530,-915.5,0.00041095,30]
[381374568,1756163440541,-403.73325762,0.00041095,30]
[381374569,1756163440554,-480.0,0.00041095,30]
[381374570,1756163440565,-480.0,0.00041095,30]
[381374571,1756163440577,-480.0,0.00041095,30]
[381374572,1756163440589,-546.72,0.00041095,30]
[381374573,1756163440600,-480.0,0.00041095,30]
[381374574,1756163440612,-480.0,0.00041095,30]
[381374576,1756163440624,-480.0,0.00041095,30]
[381374577,1756163440635,-480.0,0.00041095,30]
[381374580,1756163440646,-480.0,0.00041095,30]
[381374582,1756163440657,-480.0,0.00041095,30]
[381374584,1756163440669,-959.75,0.00041095,30]
[381374586,1756163440680,-480.0,0.00041095,30]
[381374589,1756163440691,-480.0,0.00041095,30]
[381374591,1756163440704,-480.0,0.00041095,30]
[381374593,1756163440716,-480.0,0.00041095,30]
[381374595,1756163440733,-480.0,0.00041095,30]
[381374597,1756163440744,-480.0,0.00041095,30]
[381374600,1756163440756,-520.52,0.00041095,30]
[381374602,1756163440767,-906.14,0.00041095,30]
[381374604,1756163440780,-480.0,0.00041095,30]
[381374606,1756163440793,-480.0,0.00041095,30]
[381374608,1756163440805,-1240.51,0.00041095,30]
[381374611,1756163440817,-677.03,0.00041095,30]
[381374613,1756163440828,-480.0,0.00041095,30]
[381374615,1756163440840,-284.07123164,0.00041095,30]
[381374617,1756163440851,-752.21,0.00041095,30]
[381374619,1756163440862,-480.0,0.00041095,30]
[381374622,1756163440874,-480.0,0.00041095,30]
[381374624,1756163440885,-480.0,0.00041095,30]
[381374626,1756163440897,-480.0,0.00041095,30]
[381374628,1756163440908,-480.0,0.00041095,30]
[381374631,1756163440920,-480.0,0.00041095,30]
[381374633,1756163440930,-480.0,0.00041095,30]
[381374635,1756163440942,-480.0,0.00041095,30]
[381374637,1756163440953,-480.0,0.00041095,30]
[381374639,1756163440964,-1090.11,0.00041095,30]
[381374642,1756163440977,-804.14,0.00041095,30]
[381374644,1756163440988,-480.0,0.00041095,30]
[381374646,1756163441000,-480.0,0.00041095,30]
[381374648,1756163441011,-480.0,0.00041095,30]
[381374651,1756163441023,-480.0,0.00041095,30]
[381374653,1756163441034,-570.82,0.00041095,30]
[381374655,1756163441046,-480.0,0.00041095,30]
[381374658,1756163441059,-480.0,0.00041095,30]
[381374660,1756163441071,-480.0,0.00041095,30]
[381374662,1756163441084,-480.0,0.00041095,30]
[381374664,1756163441095,-480.0,0.00041095,30]
[381374667,1756163441107,-480.0,0.00041095,30]
[381374669,1756163441119,-480.0,0.00041095,30]
[381374671,1756163441131,-480.0,0.00041095,30]
[381374673,1756163441142,-769.73,0.00041095,30]
[381374675,1756163441154,-480.0,0.00041095,30]
[381374678,1756163441165,-560.07680711,0.00041095,30]
[381374680,1756163441176,-480.0,0.00041095,30]
[381374682,1756163441188,-480.0,0.00041095,30]
[381374684,1756163441200,-567.97,0.00041095,7]
[381374686,1756163441211,-480.0,0.00041095,30]
[381374689,1756163441222,-480.0,0.00041095,30]
[381374691,1756163441233,-480.0,0.00041095,30]
[381374693,1756163441245,-480.0,0.00041095,30]
[381374695,1756163441256,-480.0,0.00041095,30]
[381374697,1756163441267,-766.64,0.00041095,30]
[381374700,1756163441278,-480.0,0.00041095,30]
[381374702,1756163441289,-744.64,0.00041095,30]
[381374704,1756163441300,-480.0,0.00041095,30]
[381374706,1756163441311,-480.0,0.00041095,30]
[381374708,1756163441322,-151.0,0.00041095,30]
[381374710,1756163441335,-480.0,0.00041095,30]
[381374713,1756163441346,-472.8513181,0.00041095,30]
[381374715,1756163441357,-480.0,0.00041095,30]
[381374717,1756163441368,-480.0,0.00041095,30]
[381374719,1756163441380,-480.0,0.00041095,30]
[381374721,1756163441391,-1366.48,0.00041095,30]
[381374723,1756163441402,-480.0,0.00041095,30]
[381374725,1756163441413,-480.0,0.00041095,30]
[381374728,1756163441425,-779.81,0.00041095,30]
[381374730,1756163441434,-480.0,0.00041095,30]
[381374732,1756163441444,-480.0,0.00041095,30]
[381374734,1756163441453,-640.46,0.00041095,30]
[381374736,1756163441462,-480.0,0.00041095,30]
[381374738,1756163441473,-480.0,0.00041095,30]
[381374740,1756163441482,-532.09,0.00041095,30]
[381374773,1756163441789,-480.0,0.00041095,30]
[381374777,1756163441817,-480.0,0.00041095,30]
[381374780,1756163441835,-1839.28,0.00041095,30]
[381374782,1756163441845,-480.0,0.00041095,30]
[381374784,1756163441854,-480.0,0.00041095,30]
[381374786,1756163441863,-480.0,0.00041095,30]
[381374788,1756163441872,-837.18,0.00041095,30]
[381374790,1756163441882,-480.0,0.00041095,20]
[381374792,1756163441891,-480.0,0.00041095,30]
[381374793,1756163441900,-480.0,0.00041095,30]
[381374795,1756163441909,-973.63,0.00041095,30]
[381374797,1756163441918,-480.0,0.00041095,30]
[381374799,1756163441927,-480.0,0.00041095,30]
[381374801,1756163441936,-2822.02,0.00041095,30]
[381374803,1756163441946,-1833.89,0.00041095,30]
[381374806,1756163441955,-480.0,0.00041095,30]
[381374807,1756163441965,-2269.25,0.00041095,30]
[381374810,1756163441975,-480.0,0.00041095,30]
[381374811,1756163441984,-480.0,0.00041095,30]
[381374813,1756163441993,-480.0,0.00041095,30]
[381374815,1756163442003,-842.37,0.00041095,30]
[381374817,1756163442012,-480.0,0.00041095,30]
[381374819,1756163442021,-480.0,0.00041095,30]
[381374822,1756163442030,-480.0,0.00041095,5]
[381374823,1756163442039,-480.0,0.00041095,30]
[381374825,1756163442049,-204.3373911,0.00041095,20]
[381374828,1756163442058,-480.0,0.00041095,30]
[381374830,1756163442068,-480.0,0.00041095,30]
[381374832,1756163442078,-480.0,0.00041095,30]
[381374834,1756163442087,-564.72,0.00041095,30]
[381374836,1756163442096,-480.0,0.00041095,30]
[381374838,1756163442106,-589.67,0.00041095,30]
[381374840,1756163442115,-480.0,0.00041095,30]
[381374842,1756163442124,-480.0,0.00041095,30]
[381374844,1756163442134,-480.0,0.00041095,30]
[381374846,1756163442143,-480.0,0.00041095,30]
[381374848,1756163442152,-235.75,0.00041095,30]
[381374850,1756163442162,-480.0,0.00041095,30]
[381374852,1756163442171,-1980.78,0.00041095,30]
[381374854,1756163442180,-480.0,0.00041095,30]
[381374856,1756163442189,-565.67,0.00041095,30]
[381374858,1756163442198,-480.0,0.00041095,30]
[381374860,1756163442207,-480.0,0.00041095,30]
[381374862,1756163442217,-480.0,0.00041095,30]
[381374864,1756163442227,-480.0,0.00041095,30]
[381374866,1756163442236,-506.88,0.00041095,30]
[381374868,1756163442245,-480.0,0.00041095,30]
[381374870,1756163442255,-480.0,0.00041095,30]
[381374872,1756163442264,-832.33,0.00041095,30]
[381374874,1756163442273,-480.0,0.00041095,30]
[381374876,1756163442282,-480.0,0.00041095,30]
[381374877,1756163442291,-480.0,0.00041095,30]
[381374879,1756163442301,-729.37,0.00041095,30]
[381374881,1756163442311,-1876.4,0.00041095,30]
[381374883,1756163442320,-480.0,0.00041095,30]
[381374886,1756163442335,-684.45,0.00041095,30]
[381374888,1756163442344,-480.0,0.00041095,30]
[381374890,1756163442353,-480.0,0.00041095,30]
[381374892,1756163442362,-480.0,0.00041095,30]
[381374894,1756163442371,-200.38109841,0.00041095,30]
[381374896,1756163442380,-480.0,0.00041095,30]
[381374898,1756163442390,-151.0,0.00041095,30]
[381374900,1756163442399,-151.0,0.00041095,30]
[381374902,1756163442408,-151.0,0.00041095,30]
[381374904,1756163442417,-151.0,0.00041095,30]
[381374906,1756163442427,-151.0,0.00041095,30]
[381374908,1756163442436,-151.0,0.00041095,30]
[381374909,1756163442445,-151.0,0.00041095,30]
[381374911,1756163442454,-151.0,0.00041095,30]
[381374914,1756163442465,-260.915638,0.00041095,30]
[381374916,1756163442475,-603.08,0.00041095,30]
[381374918,1756163442484,-480.0,0.00041095,30]
[381374920,1756163442493,-480.0,0.00041095,30]
[381374922,1756163442503,-480.0,0.00041095,30]
[381374923,1756163442512,-1094.07,0.00041095,30]
[381374925,1756163442522,-151.0,0.00041095,15]
[381374928,1756163442531,-151.0,0.00041095,15]
[381374930,1756163442541,-151.0,0.00041095,15]
[381374932,1756163442550,-1189.37,0.00041095,30]
[381374934,1756163442560,-480.0,0.00041095,30]
[381374936,1756163442570,-1580.91,0.00041095,30]
[381374938,1756163442579,-480.0,0.00041095,2]
[381374940,1756163442589,-480.0,0.00041095,30]
[381374942,1756163442598,-480.0,0.00041095,30]
[381374944,1756163442607,-480.0,0.00041095,30]
[381374946,1756163442616,-745.67,0.00041095,30]
[381374948,1756163442625,-480.0,0.00041095,30]
[381374950,1756163442635,-559.57,0.00041095,30]
[381374952,1756163442644,-151.0,0.00041095,30]
[381374954,1756163442653,-559.66,0.00041095,30]
[381374956,1756163442662,-213.887336,0.00041095,30]
[381374958,1756163442672,-480.0,0.00041095,30]
[381374960,1756163442681,-480.0,0.00041095,30]
[381374962,1756163442690,-480.0,0.00041095,30]
[381374964,1756163442699,-1833.23,0.00041095,30]
[381374966,1756163442708,-480.0,0.00041095,30]
[381374969,1756163442718,-480.0,0.00041095,30]
[381374973,1756163442733,-498.77,0.00041095,30]
[381374975,1756163442742,-2599.87,0.00041095,30]
[381374977,1756163442752,-416.78850643,0.00041095,30]
[381374979,1756163442761,-480.0,0.00041095,30]
[381374981,1756163442771,-480.0,0.00041095,30]
[381374983,1756163442781,-763.59,0.00041095,30]
[381374985,1756163442790,-480.0,0.00041095,30]
[381374987,1756163442801,-480.0,0.00041095,30]
[381374989,1756163442811,-480.0,0.00041095,30]
[381374991,1756163442820,-480.0,0.00041095,30]
[381374994,1756163442830,-480.0,0.00041095,30]
[381374996,1756163442839,-541.6,0.00041095,30]
[381374999,1756163442848,-3470.77,0.00041095,30]
[381375001,1756163442857,-480.0,0.00041095,30]
[381375003,1756163442866,-480.0,0.00041095,30]
[381375005,1756163442876,-151.0,0.00041095,30]
[381375007,1756163442885,-151.0,0.00041095,30]
[381375010,1756163442894,-151.0,0.00041095,30]
[381375012,1756163442904,-151.0,0.00041095,30]
[381375014,1756163442913,-151.0,0.00041095,30]
[381375016,1756163442923,-151.0,0.00041095,30]
[381375018,1756163442932,-151.0,0.00041095,30]
[381375020,1756163442941,-151.0,0.00041095,30]
[381375022,1756163442950,-151.0,0.00041095,30]
[381375024,1756163442959,-151.0,0.00041095,30]
[381375026,1756163442969,-480.0,0.00041095,30]
[381375028,1756163442978,-151.0,0.00041095,30]
[381375030,1756163442987,-173.980006,0.00041095,30]
[381375032,1756163442996,-480.0,0.00041095,30]
[381375034,1756163443006,-480.0,0.00041095,30]
[381375036,1756163443015,-2547.58,0.00041095,30]
[381375038,1756163443025,-480.0,0.00041095,30]
[381375040,1756163443034,-480.0,0.00041095,30]
[381375042,1756163443043,-480.0,0.00041095,30]
[381375044,1756163443052,-609.42,0.00041095,30]
[381375046,1756163443062,-618.34,0.00041095,30]
[381375048,1756163443072,-480.0,0.00041095,30]
[381375050,1756163443082,-1624.2,0.00041095,30]
[381375052,1756163443091,-717.34,0.00041095,30]
[381375054,1756163443100,-480.0,0.00041095,30]
[381375056,1756163443109,-480.0,0.00041095,30]
[381375058,1756163443119,-1455.07,0.00041095,30]
[381375060,1756163443128,-480.0,0.00041095,30]
[381375062,1756163443137,-480.0,0.00041095,30]
[381375064,1756163443147,-959.17,0.00041095,30]
[381375066,1756163443155,-592.78,0.00041095,30]
[381375068,1756163443165,-480.0,0.00041095,30]
[381375070,1756163443174,-499.21,0.00041095,30]
[381375072,1756163443183,-660.54,0.00041095,30]
[381375074,1756163443192,-480.0,0.00041095,30]
[381375076,1756163443203,-556.21,0.00041095,30]
[381375078,1756163443213,-873.22,0.00041095,30]
[381375080,1756163443223,-480.0,0.00041095,30]
[381375082,1756163443232,-750.5,0.00041095,30]
[381375084,1756163443241,-930.29,0.00041095,30]
[381375086,1756163443250,-480.0,0.00041095,30]
[381375088,1756163443260,-7163.33,0.00041095,30]
[381375090,1756163443269,-480.0,0.00041095,30]
[381375092,1756163443278,-654.82,0.00041095,30]
[381375094,1756163443287,-480.0,0.00041095,30]
[381375096,1756163443297,-708.94,0.00041095,30]
[381375098,1756163443306,-703.74,0.00041095,30]
[381375100,1756163443315,-967.28,0.00041095,30]
[381375102,1756163443324,-151.0,0.00041095,30]
[381375104,1756163443333,-480.0,0.00041095,30]
[381375106,1756163443342,-480.0,0.00041095,30]
[381375108,1756163443351,-480.0,0.00041095,30]
[381375110,1756163443361,-480.0,0.00041095,30]
[381375112,1756163443370,-2987.88,0.00041095,30]
[381375114,1756163443379,-480.0,0.00041095,30]
[381375116,1756163443389,-1262.02,0.00041095,30]
[381375118,1756163443398,-790.45,0.00041095,30]
[381375121,1756163443407,-943.72,0.00041095,30]
[381375124,1756163443417,-742.79,0.00041095,30]
[381375126,1756163443426,-480.0,0.00041095,30]
[381375128,1756163443436,-500.0,0.00041095,120]
[381375130,1756163443446,-480.0,0.00041095,30]
[381375132,1756163443455,-480.0,0.00041095,30]
[381375134,1756163443465,-483.28,0.00041095,30]
[381375136,1756163443476,-1787.08,0.00041095,30]
[381375138,1756163443486,-480.0,0.00041095,30]
[381375140,1756163443495,-480.0,0.00041095,30]
[381375142,1756163443504,-774.77,0.00041095,30]
[381375143,1756163443513,-690.05,0.00041095,30]
[381375144,1756163443523,-480.0,0.00041095,30]
[381375146,1756163443532,-577.99,0.00041095,30]
[381375147,1756163443542,-515.42373222,0.00041095,30]
[381375148,1756163443551,-614.23377415,0.00041095,30]
[381375149,1756163443561,-587.25,0.00041095,30]
[381375150,1756163443570,-784.92,0.00041095,30]
[381375151,1756163443579,-948.81,0.00041095,30]
[381375152,1756163443589,-1493.44,0.00041095,30]
[381375153,1756163443598,-480.0,0.00041095,30]
[381375154,1756163443608,-480.0,0.00041095,30]
[381375155,1756163443617,-480.0,0.00041095,30]
[381375156,1756163443626,-480.0,0.00041095,30]
[381375157,1756163443636,-480.0,0.00041095,30]
[381375158,1756163443645,-480.0,0.00041095,30]
[381375159,1756163443654,-2172.84,0.00041095,30]
[381375160,1756163443664,-736.65,0.00041095,30]
[381375161,1756163443673,-480.0,0.00041095,30]
[381375162,1756163443683,-480.0,0.00041095,30]
[381375163,1756163443692,-480.0,0.00041095,30]
[381375164,1756163443701,-2100.8,0.00041095,30]
[381375165,1756163443711,-1529.94,0.00041095,30]
[381375166,1756163443723,-480.0,0.00041095,30]
[381375167,1756163443736,-964.57,0.00041095,30]
[381375168,1756163443747,-480.0,0.00041095,30]
[381375169,1756163443756,-480.0,0.00041095,30]
[381375170,1756163443766,-480.0,0.00041095,30]
[381375171,1756163443778,-513.01,0.00041095,30]
[381375172,1756163443787,-598.59,0.00041095,30]
[381375173,1756163443798,-480.0,0.00041095,30]
[381375174,1756163443812,-1000.0,0.00041095,30]
[381375175,1756163443822,-480.0,0.00041095,30]
[381375176,1756163443833,-943.31,0.00041095,30]
[381375177,1756163443842,-480.0,0.00041095,30]
[381375178,1756163443852,-480.0,0.00041095,30]
[381375179,1756163443862,-480.0,0.00041095,30]
[381375180,1756163443872,-480.0,0.00041095,30]
[381375181,1756163443882,-919.81,0.00041095,30]
[381375182,1756163443892,-151.0,0.00041095,30]
[381375183,1756163443902,-242.713824,0.00041095,30]
[381375184,1756163443912,-776.83,0.00041095,30]
[381375185,1756163443921,-1294.63,0.00041095,30]
[381375186,1756163443931,-634.28,0.00041095,14]
[381375187,1756163443940,-480.0,0.00041095,30]
[381375188,1756163443950,-480.0,0.00041095,30]
[381375189,1756163443959,-480.0,0.00041095,30]
[381375190,1756163443969,-1509.56,0.00041095,30]
[381375191,1756163443978,-480.0,0.00041095,30]
[381375192,1756163443987,-480.0,0.00041095,30]
[381375193,1756163443997,-480.0,0.00041095,30]
[381375194,1756163444006,-480.0,0.00041095,30]
[381375195,1756163444016,-3179.19,0.00041095,30]
[381375196,1756163444026,-480.0,0.00041095,30]
[381375197,1756163444035,-480.0,0.00041095,30]
[381375198,1756163444046,-480.0,0.00041095,30]
[381375199,1756163444055,-587.57,0.00041095,30]
[381375200,1756163444066,-1109.24,0.00041095,30]
[381375201,1756163444077,-541.08,0.00041095,30]
[381375202,1756163444087,-544.51,0.00041095,30]
[381375203,1756163444096,-705.51,0.00041095,30]
[381375204,1756163444106,-1821.39,0.00041095,30]
[381375205,1756163444116,-772.95,0.00041095,30]
[381375206,1756163444126,-480.0,0.00041095,30]
[381375207,1756163444135,-480.0,0.00041095,30]
[381375208,1756163444145,-480.0,0.00041095,30]
[381375209,1756163444155,-681.04,0.00041095,30]
[381375210,1756163444165,-526.48,0.00041095,30]
[381375211,1756163444174,-480.0,0.00041095,30]
[381375212,1756163444184,-480.0,0.00041095,30]
[381375213,1756163444194,-480.0,0.00041095,30]
[381375214,1756163444204,-480.0,0.00041095,30]
[381375215,1756163444215,-603.78,0.00041095,30]
[381375216,1756163444226,-636.11,0.00041095,30]
[381375217,1756163444235,-603.46,0.00041095,30]
[381375218,1756163444245,-513.37,0.00041095,30]
[381375219,1756163444255,-151.0,0.00041095,30]
[381375220,1756163444265,-151.0,0.00041095,30]
[381375221,1756163444274,-151.0,0.00041095,30]
[381375222,1756163444284,-151.0,0.00041095,30]
[381375223,1756163444294,-151.0,0.00041095,30]
[381375224,1756163444303,-824.86,0.00041095,30]
[381375225,1756163444312,-151.0,0.00041095,30]
[381375226,1756163444322,-271.460044,0.00041095,30]
[381375228,1756163444331,-480.0,0.00041095,30]
[381375230,1756163444341,-480.0,0.00041095,30]
[381375232,1756163444350,-263.29070393,0.00041095,30]
[381375233,1756163444360,-750.19,0.00041095,30]
[381375234,1756163444370,-480.0,0.00041095,30]
[381375235,1756163444379,-480.0,0.00041095,30]
[381375236,1756163444389,-1074.6,0.00041095,30]
[381375237,1756163444400,-480.0,0.00041095,30]
[381375239,1756163444410,-581.23,0.00041095,30]
[381375240,1756163444420,-955.21,0.00041095,30]
[381375242,1756163444430,-11080.13,0.00041095,30]
[381375244,1756163444440,-480.0,0.00041095,30]
[381375246,1756163444449,-480.0,0.00041095,30]
[381375247,1756163444459,-572.86,0.00041095,30]
[381375248,1756163444468,-480.0,0.00041095,30]
[381375249,1756163444479,-480.0,0.00041095,30]
[381375250,1756163444488,-480.0,0.00041095,30]
[381375251,1756163444497,-480.0,0.00041095,30]
[381375252,1756163444507,-650.8,0.00041095,30]
[381375253,1756163444516,-1495.71,0.00041095,30]
[381375254,1756163444526,-1057.06,0.00041095,30]
[381375255,1756163444535,-480.0,0.00041095,30]
[381375256,1756163444544,-615.99,0.00041095,30]
[381375257,1756163444554,-480.0,0.00041095,30]
[381375258,1756163444563,-151.0,0.00041095,30]
[381375259,1756163444573,-151.0,0.00041095,30]
[381375260,1756163444583,-480.0,0.00041095,30]
[381375261,1756163444593,-151.0,0.00041095,30]
[381375262,1756163444602,-151.0,0.00041095,30]
[381375263,1756163444611,-151.0,0.00041095,30]
[381375264,1756163444621,-151.0,0.00041095,30]
[381375265,1756163444630,-480.0,0.00041095,30]
[381375266,1756163444639,-151.0,0.00041095,30]
[381375267,1756163444649,-1332.35,0.00041095,30]
[381375268,1756163444659,-506.61,0.00041095,30]
[381375269,1756163444668,-480.0,0.00041095,30]
[381375270,1756163444678,-1273.25,0.00041095,30]
[381375271,1756163444687,-916.36,0.00041095,30]
[381375272,1756163444697,-480.0,0.00041095,30]
[381375273,1756163444706,-1161.68,0.00041095,30]
[381375274,1756163444716,-5593.68,0.00041095,30]
[381375276,1756163444729,-480.0,0.00041095,30]
[381375277,1756163444738,-318.22953359,0.00041095,30]
[381375278,1756163444748,-893.68,0.00041095,30]
[381375280,1756163444757,-1678.02,0.00041095,30]
[381375282,1756163444767,-539.06,0.00041095,30]
[381375283,1756163444777,-1307.0,0.00041095,30]
[381375284,1756163444787,-480.0,0.00041095,30]
[381375285,1756163444797,-480.0,0.00041095,30]
[381375286,1756163444809,-480.0,0.00041095,30]
[381375287,1756163444818,-518.67784256,0.00041095,30]
[381375288,1756163444828,-480.0,0.00041095,30]
[381375289,1756163444837,-480.0,0.00041095,30]
[381375291,1756163444847,-480.0,0.00041095,30]
[381375293,1756163444857,-480.0,0.00041095,30]
[381375295,1756163444867,-1070.39,0.00041095,30]
[381375297,1756163444876,-844.46,0.00041095,30]
[381375299,1756163444885,-480.0,0.00041095,30]
[381375301,1756163444895,-480.0,0.00041095,30]
[381375303,1756163444905,-1357.36,0.00041095,30]
[381375305,1756163444914,-538.85,0.00041095,30]
[381375311,1756163445076,-480.0,0.00041095,30]
[381375312,1756163445095,-1075.09,0.00041095,30]
[381375313,1756163445105,-480.0,0.00041095,30]
[381375314,1756163445114,-480.0,0.00041095,30]
[381375315,1756163445124,-1110.02,0.00041095,30]
[381375316,1756163445134,-587.21,0.00041095,30]
[381375317,1756163445143,-814.82,0.00041095,30]
[381375318,1756163445153,-480.0,0.00041095,30]
[381375319,1756163445162,-3608.65,0.00041095,30]
[381375320,1756163445172,-480.0,0.00041095,30]
[381375321,1756163445181,-736.98,0.00041095,30]
[381375322,1756163445190,-577.79,0.00041095,30]
[381375323,1756163445200,-642.77,0.00041095,30]
[381375324,1756163445209,-480.0,0.00041095,30]
[381375325,1756163445221,-827.93,0.00041095,30]
[381375326,1756163445231,-151.0,0.00041095,30]
[381375327,1756163445240,-480.0,0.00041095,30]
[381375328,1756163445249,-151.0,0.00041095,30]
[381375329,1756163445259,-480.0,0.00041095,30]
[381375330,1756163445268,-480.0,0.00041095,30]
[381375331,1756163445277,-480.0,0.00041095,30]
[381375332,1756163445287,-887.14,0.00041095,30]
[381375333,1756163445296,-2761.28,0.00041095,30]
[381375334,1756163445306,-495.15,0.00041095,30]
[381375335,1756163445316,-697.58,0.00041095,30]
[381375336,1756163445326,-480.0,0.00041095,30]
[381375337,1756163445336,-3083.1,0.00041095,30]